[Event "7th Llucmajor Open 2018"]
[Site "S'Arenal de Llucmajor"]
[Date "2018.05.15"]
[Round "4"]
[White "Gorny, Michael"]
[Black "Mikalsen, Erlend"]
[Result "0-1"]
[ECO "A47"]
[WhiteElo "2080"]
[BlackElo "2307"]
[Annotator "ChessBase"]
[PlyCount "52"]
[EventDate "2018.??.??"]
[EventType "swiss"]
[EventCountry "ESP"]
[SourceTitle "playchess.com"]
[Source "ChessBase"]
[SourceQuality "1"]
[TimeControl "5400+30"]

1. d4 {[%emt 0:00:00]} Nf6 {[%emt 0:00:06]} 2. Nf3 {[%emt 0:00:00]} b6 {[%emt 0:00:23]} 3. Bf4 {[%emt 0:01:53]} Bb7 {[%emt 0:00:05]} 4. e3 {[%emt 0:01:01]} Nh5 {[%emt 0:00:07]} 5. Bg5 {[%emt 0:02:14]} h6 {[%emt 0:00:07]} 6. Bh4 {[%emt 0:00:28]} g5 {[%emt 0:00:08]} 7. Ne5 {[%emt 0:05:55]} Nf6 {[%emt 0:01:56]} 8. Bg3 {[%emt 0:00:38]} d6 {[%emt 0:01:23]} 9. Nf3 {[%emt 0:03:02]} Ne4 {[%emt 0:08:26]} 10. Nc3 {[%emt 0:01:23]} Nxg3 {[%emt 0:01:54]} 11. hxg3 {[%emt 0:00:07]} Bg7 {[%emt 0:00:14]} 12. e4 {[%emt 0:04:10]} e6 {[%emt 0:03:30]} 13. Qd2 {[%emt 0:02:53]} g4 {[%emt 0:08:10]} 14. Ng1 {[%emt 0:07:31]} h5 {[%emt 0:07:47]} 15. f4 {[%emt 0:04:27]} h4 {[%emt 0:05:03]} 16. O-O-O {[%emt 0:04:41]} hxg3 {[%emt 0:01:40]} 17. Rxh8+ {[%emt 0:00:26]} Bxh8 {[%emt 0:00:04]} 18. d5 {[%emt 0:01:33]} Nd7 {[%emt 0:00:59]} 19. Bb5 {[%emt 0:01:26]} Qh4 {[%emt 0:05:55]} 20. Nge2 {[%emt 0:07:43]} O-O-O {[%emt 0:00:34]} 21. Nd4 {[%emt 0:04:52]} Bxd4 {[%emt 0:06:01]} 22. Qxd4 {[%emt 0:00:06]} Kb8 {[%emt 0:02:06]} 23. Qa4 {[%emt 0:07:08]} Nc5 {[%emt 0:00:28]} 24. Qa3 {[%emt 0:02:47]} Qh6 {[%emt 0:02:16]} 25. Rf1 {[%emt 0:06:01]} f5 {[%emt 0:03:38]} 26. exf5 {[%emt 0:05:44]} exd5 {[%emt 0:00:18]} 0-1

[Event "7th Llucmajor Open 2018"]
[Site "S'Arenal de Llucmajor"]
[Date "2018.05.17"]
[Round "5"]
[White "Panelo, Marcelo"]
[Black "Paquico Rodriguez, Ivan"]
[Result "1-0"]
[ECO "A40"]
[WhiteElo "2370"]
[BlackElo "2231"]
[Annotator "NA"]
[PlyCount "103"]
[EventDate "2018.??.??"]
[EventType "swiss"]
[EventCountry "ESP"]
[SourceTitle "playchess.com"]
[Source "ChessBase"]
[SourceQuality "1"]
[TimeControl "5400+30"]

1. d4 {[%emt 0:04:45]} g6 {[%emt 0:00:17]} 2. c4 {[%emt 0:00:32]} Bg7 {[%emt 0:00:10]} 3. Nf3 {[%emt 0:00:43]} d6 {[%emt 0:00:14]} 4. Nc3 {[%emt 0:00:22]} e5 {[%emt 0:00:28]} 5. e4 {[%emt 0:01:13]} Nc6 {[%emt 0:03:43]} 6. Bg5 {[%emt 0:01:42]} f6 {[%emt 0:05:26]} 7. Be3 {[%emt 0:00:10]} Nh6 {[%emt 0:03:33]} 8. c5 {[%emt 0:06:55]} O-O {[%emt 0:15:29]} 9. cxd6 {[%emt 0:01:20]} cxd6 {[%emt 0:02:15]} 10. dxe5 {[%emt 0:00:14]} dxe5 {[%emt 0:04:14]} 11. Bc4+ {[%emt 0:00:08]} Kh8 {[%emt 0:00:58]} 12. Bc5 {[%emt 0:00:31]} Re8 {[%emt 0:01:44]} 13. h3 {[%emt 0:02:44]} Qa5 {[%emt 0:06:35]} 14. Be3 {[%emt 0:00:11]} Qb4 {[%emt 0:05:55]} 15. Bb3 {[%emt 0:05:23]} Na5 {[%emt 0:02:26]} 16. O-O {[%emt 0:22:19]} Nxb3 {[%emt 0:02:25]} 17. axb3 {[%emt 0:00:06]} Be6 {[%emt 0:02:08]} 18. Ra4 {[%emt 0:00:44]} Qxb3 {[%emt 0:03:53]} 19. Qc1 {[%emt 0:01:02]} b5 {[%emt 0:13:24]} 20. Nd2 {[%emt 0:04:46]} Qxc3 {[%emt 0:00:08]} 21. Qxc3 {[%emt 0:00:16]} bxa4 {[%emt 0:00:03]} 22. Qc6 {[%emt 0:01:22]} a3 {[%emt 0:04:59]} 23. bxa3 {[%emt 0:00:23]} Bf8 {[%emt 0:00:50]} 24. Rb1 {[%emt 0:06:23]} Nf7 {[%emt 0:01:01]} 25. Rb7 {[%emt 0:03:35]} Bxa3 {[%emt 0:06:41]} 26. Rxa7 {[%emt 0:01:01]} Rac8 {[%emt 0:00:07]} 27. Rc7 {[%emt 0:01:21]} Bd6 {[%emt 0:03:12]} 28. Rxc8 {[%emt 0:01:08]} Rxc8 {[%emt 0:00:57]} 29. Qa6 {[%emt 0:00:43]} Kg7 {[%emt 0:05:01]} 30. Nb3 {[%emt 0:02:40]} Re8 {[%emt 0:00:49]} 31. Na5 {[%emt 0:00:59]} Bd7 {[%emt 0:02:04]} 32. Nc4 {[%emt 0:00:44]} Bf8 {[%emt 0:02:58]} 33. Qb7 {[%emt 0:00:30]} Ba4 {[%emt 0:00:36]} 34. Nb6 {[%emt 0:01:14]} Bb3 {[%emt 0:00:36]} 35. Qc6 {[%emt 0:02:08]} Re6 {[%emt 0:01:05]} 36. Qb5 {[%emt 0:05:21]} Ba2 {[%emt 0:01:02]} 37. Qb2 {[%emt 0:01:16]} Rxb6 {[%emt 0:00:26]} 38. Qxb6 {[%emt 0:00:31]} Bc4 {[%emt 0:00:14]} 39. Qc6 {[%emt 0:01:42]} Ba2 {[%emt 0:00:11]} 40. h4 {[%emt 0:03:22]} h5 {[%emt 0:01:19]} 41. g3 {[%emt 0:01:00]} Bd6 {[%emt 0:00:22]} 42. Qd7 {[%emt 0:01:14]} Bb3 {[%emt 0:00:51]} 43. f3 {[%emt 0:00:29]} Bc4 {[%emt 0:00:18]} 44. Kf2 {[%emt 0:00:15]} Bb3 {[%emt 0:00:12]} 45. g4 {[%emt 0:01:51]} hxg4 {[%emt 0:01:03]} 46. fxg4 {[%emt 0:01:34]} Bc2 {[%emt 0:00:25]} 47. Bh6+ {[%emt 0:02:55]} Kg8 {[%emt 0:00:03]} 48. Qe8+ {[%emt 0:00:22]} Kh7 {[%emt 0:00:03]} 49. Qxf7+ {[%emt 0:00:10]} Kxh6 {[%emt 0:00:04]} 50. Qg8 {[%emt 0:01:27]} Bc5+ {[%emt 0:00:32]} 51. Kf3 {[%emt 0:01:37]} g5 {[%emt 0:00:30]} 52. h5 1-0

[Event "7th Llucmajor Open 2018"]
[Site "S'Arenal de Llucmajor"]
[Date "2018.05.17"]
[Round "5"]
[White "Lazarte Anello, David Emiliano"]
[Black "Trias Ramos, Diego Jose"]
[Result "1-0"]
[ECO "C45"]
[WhiteElo "2080"]
[BlackElo "1590"]
[Annotator "NA"]
[PlyCount "85"]
[EventDate "2018.??.??"]
[EventType "swiss"]
[EventCountry "ESP"]
[SourceTitle "playchess.com"]
[Source "ChessBase"]
[SourceQuality "1"]
[TimeControl "5400+30"]

1. e4 e5 2. Nf3 Nc6 3. d4 exd4 4. Nxd4 Qf6 5. Be3 Bc5 6. c3 Nge7 7. Nc2 Bb6 8. Nd2 O-O 9. Bc4 d6 10. O-O Be6 11. f4 d5 12. Bxb6 axb6 13. e5 Qg6 14. Be2 f6 15. exf6 Rxf6 16. g3 Raf8 17. Bh5 Qh6 18. Qe2 Bh3 19. Rf2 Re6 20. Qd1 Qf6 21. Nf3 h6 22. Nfd4 Nxd4 23. Nxd4 Rd6 24. Bf3 Bd7 25. Qd3 Nf5 26. Nb5 Bxb5 27. Qxb5 Qd8 28. Re1 c6 29. Qb3 Kh8 30. Rfe2 d4 31. Be4 dxc3 32. Bxf5 Rd2 33. Bg4 c2 34. Qc3 Rxe2 35. Bxe2 Qd5 36. Bf3 Qxa2 37. Qxc2 Qa5 38. Re7 Qa7 39. Qc3 b5+ 40. Kg2 Rg8 41. Bxc6 Qa4 42. Bd5 b4 43. Qb3 1-0

[Event "7th Llucmajor Open 2018"]
[Site "S'Arenal de Llucmajor"]
[Date "2018.05.17"]
[Round "6"]
[White "Kumar, Naman"]
[Black "Lillo Castany, Victor"]
[Result "0-1"]
[ECO "B56"]
[WhiteElo "2052"]
[BlackElo "2349"]
[Annotator "NA"]
[PlyCount "58"]
[EventDate "2018.??.??"]
[EventType "swiss"]
[EventCountry "ESP"]
[SourceTitle "playchess.com"]
[Source "ChessBase"]
[SourceQuality "1"]
[TimeControl "5400+30"]

1. e4 c5 2. Nf3 d6 3. d4 Nf6 4. Nc3 cxd4 5. Nxd4 Nc6 6. f3 e5 7. Nb3 Be7 8. Be3 O-O 9. Qd2 a5 10. Na4 {B56: Classical Sicilian: Unusual Lines} (10. Bb5 Be6 11. O-O Na7 12. Be2 Nc8 13. Bb5 Na7 14. Be2 Nc8 15. Bb5 {½-½ (15) Carlsen,M (2840)-Grischuk,A (2737) Doha 2016}) 10... Be6 11. Nb6 Rb8 12. O-O-O Qc7 13. g4 $146 ({Predecessor:} 13. Kb1 Rfd8 14. c4 a4 15. Nxa4 Nd7 16. Nc3 Nc5 17. Nxc5 dxc5 {0-1 (34) Baisynov,I (1986)-Pak,Y (2401) Cholpon Ata 2016}) 13... Rfd8 14. g5 Nd7 15. Nd5 Bxd5 16. exd5 a4 17. Na1 Na5 18. Qb4 {[#]} b5 $17 19. Bxb5 Nc5 20. c4 Rxb5 21. Qxb5 Rb8 22. Qxb8+ Qxb8 23. Bxc5 dxc5 24. h4 Nxc4 25. Rh2 e4 26. Rf2 Qg3 27. Re2 Qxf3 28. Rde1 Qf4+ 29. Kb1 Qxh4 0-1